fUSD/lending_fUSD_20250226
["ID","MTS","AMOUNT","RATE_DAILY","PERIOD"]
[354487880,1740528652401,-97.18334965,0.00046848,120]
[354487881,1740528652411,-500.0,0.00046848,120]
[354487882,1740528652420,-500.0,0.00046849,120]
[354487883,1740528652429,-500.0,0.00046849,120]
[354487884,1740528652439,-500.0,0.00046849,120]
[354487885,1740528652448,-484.07810425,0.00046849,120]
[354487886,1740528652460,-671.17189575,0.00046849,120]
[354487887,1740528652469,-519.69,0.00046849,30]
[354487888,1740528652479,-500.0,0.00046849,120]
[354487889,1740528652490,-825.30017296,0.00046849,120]
[354487890,1740528652502,-375.40982704,0.00046849,120]
[354487891,1740528652515,-109.89017291,0.00046849,120]
[354487892,1740528652528,-390.10982709,0.00046849,120]
[354487893,1740528652537,-319.06017291,0.00046849,120]
[354487894,1740528652549,-180.93982709,0.00046849,120]
[354487895,1740528652563,-404.56919972,0.00046849,120]
[354487896,1740528652572,-1125.59,0.00046849,120]
[354487897,1740528652582,-1670.04,0.00046849,120]
[354487898,1740528652592,-1064.47,0.00046849,120]
[354487899,1740528652604,-500.0,0.00046849,120]
[354487900,1740528652614,-527.29,0.00046849,120]
[354487901,1740528652624,-500.0,0.00046849,120]
[354487902,1740528652634,-500.0,0.00046849,120]
[354487903,1740528652644,-500.0,0.00046849,120]
[354487904,1740528652654,-1522.14,0.00046849,120]
[354487905,1740528652664,-500.0,0.00046849,120]
[354487906,1740528652673,-220.91855907,0.00046849,120]
[354487907,1740528652683,-500.0,0.00046849,120]
[354487908,1740528652692,-500.0,0.00046849,120]
[354487909,1740528652701,-500.0,0.00046849,120]
[354487910,1740528652712,-500.0,0.00046849,120]
[354487911,1740528652723,-500.0,0.00046849,120]
[354487912,1740528652732,-1258.91,0.00046849,120]
[354487913,1740528652742,-500.0,0.00046849,120]
[354487914,1740528652751,-500.0,0.00046849,120]
[354487915,1740528652762,-52.00378783,0.00046849,120]
[354487916,1740528652775,-516.76108771,0.00046849,120]
[354487917,1740528652784,-500.0,0.00046849,120]
[354487918,1740528652794,-500.0,0.00046849,120]
[354487919,1740528652804,-1456.51,0.00046849,120]
[354487920,1740528652824,-500.0,0.00046849,120]
[354487921,1740528652833,-1125.88,0.00046849,120]
[354487922,1740528652843,-500.0,0.00046849,120]
[354487923,1740528652852,-500.0,0.00046849,120]
[354487924,1740528652862,-215.37294948,0.00046849,120]
[354487925,1740528652875,-284.62705052,0.00046849,120]
[354487926,1740528652884,-500.0,0.00046849,120]
[354487927,1740528652894,-500.0,0.00046849,120]
[354487928,1740528652903,-1132.2,0.00046849,120]
[354487929,1740528652912,-165.67753998,0.00046849,120]
[354487930,1740528654940,-334.32246002,0.00046849,120]
[354487931,1740528654950,-334.27391072,0.00046849,120]
[354487932,1740528654961,-543.40370946,0.00046849,120]
[354487933,1740528654974,-760.22237982,0.00046849,120]
[354487934,1740528654984,-927.15,0.00046849,120]
[354487935,1740528654993,-500.0,0.00046849,120]
[354487936,1740528655004,-764.78,0.00046849,120]
[354487937,1740528655014,-736.32,0.00046849,120]
[354487938,1740528655024,-648.56,0.00046849,120]
[354487939,1740528655033,-500.0,0.00046849,120]
[354487940,1740528655043,-500.0,0.00046849,120]
[354487941,1740528655052,-500.0,0.00046849,120]
[354487942,1740528655063,-500.0,0.00046849,120]
[354487943,1740528655072,-1657.6,0.00046849,120]
[354487944,1740528655083,-579.86,0.00046849,120]
[354487945,1740528655387,-800.52,0.00046849,120]
[354487946,1740528655426,-500.0,0.00046849,120]
[354487947,1740528655436,-590.79,0.00046849,120]
[354487948,1740528655445,-500.0,0.00046849,120]
[354487949,1740528655456,-500.0,0.00046849,120]
[354487950,1740528655465,-795.47,0.00046849,120]
[354487951,1740528655475,-500.0,0.00046849,120]
[354487952,1740528655486,-1240.06,0.00046849,120]
[354487953,1740528655496,-591.94,0.00046849,120]
[354487954,1740528655506,-1823.99,0.00046849,120]
[354487955,1740528655516,-500.0,0.00046849,120]
[354487956,1740528655526,-620.32,0.00046849,120]
[354487957,1740528655535,-854.87,0.00046849,120]
[354487958,1740528655545,-582.68,0.00046849,120]
[354487959,1740528655554,-500.0,0.00046849,120]
[354487960,1740528655564,-547.15,0.00046849,120]
[354487961,1740528655576,-582.97,0.00046849,120]
[354487962,1740528655586,-500.0,0.00046849,120]
[354487963,1740528655596,-500.0,0.00046849,120]
[354487964,1740528655608,-500.0,0.00046849,120]
[354487965,1740528655630,-500.0,0.00046849,120]
[354487966,1740528655652,-1279.43,0.00046849,120]
[354487967,1740528655664,-500.0,0.00046849,120]
[354487968,1740528655673,-0.96092018,0.00046849,120]
[354487969,1740528655690,-1573.20907982,0.00046849,120]
[354487970,1740528655701,-707.96,0.00046849,120]
[354487971,1740528655713,-500.0,0.00046849,120]
[354487972,1740528655723,-518.41059787,0.00046849,120]
[354487973,1740528655734,-816.46,0.00046849,120]
[354487974,1740528655744,-552.92,0.00046849,120]
[354487975,1740528655754,-1427.9,0.00046849,120]
[354487976,1740528655764,-500.0,0.00046849,120]
[354487977,1740528655775,-706.69,0.00046849,120]
[354487978,1740528655784,-500.0,0.00046849,120]
[354487979,1740528655805,-158.69101928,0.00046849,120]
[354487980,1740528655820,-1431.62,0.00046849,120]
[354487981,1740528655830,-500.0,0.00046849,120]
[354487982,1740528655840,-977.68,0.00046849,120]
[354487983,1740528655850,-1932.58,0.00046849,120]
[354487984,1740528655859,-500.0,0.00046849,120]
[354487985,1740528655869,-926.94,0.00046849,120]
[354487986,1740528655879,-1017.16,0.00046849,120]
[354487987,1740528655889,-500.0,0.00046849,120]
[354487988,1740528655899,-500.0,0.00046849,120]
[354487989,1740528655908,-500.0,0.00046849,120]
[354487990,1740528655919,-500.0,0.00046849,120]
[354487991,1740528655930,-1232.67,0.00046849,120]
[354487992,1740528655939,-629.32,0.00046849,60]
[354487993,1740528655949,-894.6,0.00046849,120]
[354487994,1740528655959,-500.0,0.00046849,120]
[354487995,1740528655968,-654.48,0.00046849,120]
[354487996,1740528655978,-500.0,0.00046849,120]
[354487997,1740528655987,-635.62,0.00046849,120]
[354487998,1740528655998,-500.0,0.00046849,120]
[354487999,1740528656008,-500.0,0.00046849,120]
[354488000,1740528656020,-809.82,0.00046849,120]
[354488001,1740528656030,-1235.91,0.00046849,120]
[354488002,1740528656040,-938.76,0.00046849,120]
[354488003,1740528656050,-502.09,0.00046849,120]
[354488004,1740528656059,-500.0,0.00046849,120]
[354488005,1740528656068,-500.0,0.00046849,120]
[354488006,1740528656078,-493.567658,0.00046849,120]
[354488007,1740528656088,-500.0,0.00046849,120]
[354488008,1740528656098,-500.0,0.00046849,120]
[354488009,1740528656108,-1487.61,0.00046849,120]
[354488010,1740528656117,-500.0,0.00046849,120]
[354488011,1740528656126,-500.0,0.00046849,120]
[354488012,1740528656136,-1499.65,0.00046849,120]
[354488013,1740528656146,-840.763013,0.00046849,120]
[354488014,1740528656156,-500.0,0.00046849,120]
[354488015,1740528656166,-1147.55,0.00046849,120]
[354488016,1740528656176,-500.0,0.00046849,120]
[354488017,1740528656186,-446.45323806,0.00046849,120]
[354488018,1740528656213,-304.335339,0.00046575,120]
[354488019,1740528656225,-5953.434661,0.00046575,120]
[354488020,1740528656236,-3264.16,0.00046575,120]
[354488021,1740528656246,-192.67676194,0.00046849,120]
[354488022,1740528656256,-500.0,0.00046849,120]
[354488023,1740528656267,-500.0,0.00046849,120]
[354488024,1740528656277,-1235.34,0.00046849,120]
[354488025,1740528656287,-500.0,0.00046849,120]
[354488026,1740528656297,-500.0,0.00046849,120]
[354488027,1740528656306,-500.0,0.00046849,120]
[354488028,1740528656316,-500.0,0.00046849,120]
[354488029,1740528656325,-819.21,0.00046849,120]
[354488030,1740528656334,-1575.64,0.00046849,120]
[354488031,1740528656344,-500.0,0.00046849,120]
[354488032,1740528656354,-500.0,0.00046849,120]
[354488033,1740528656363,-1361.94,0.00046849,120]
[354488034,1740528656373,-500.0,0.00046849,120]
[354488035,1740528656384,-1285.81,0.00046849,120]
[354488036,1740528656393,-762.32,0.00046849,120]
[354488037,1740528656403,-500.0,0.00046849,120]
[354488038,1740528656412,-500.0,0.00046849,120]
[354488039,1740528656425,-1961.4,0.00046849,120]
[354488040,1740528656436,-500.0,0.00046849,120]
[354488041,1740528656446,-500.0,0.00046849,120]
[354488042,1740528656456,-998.56,0.00046849,120]
[354488043,1740528656467,-900.19,0.00046849,120]
[354488044,1740528656478,-1562.58,0.00046849,120]
[354488045,1740528656488,-851.93,0.00046849,120]
[354488046,1740528656498,-500.0,0.00046849,120]
[354488047,1740528656508,-500.0,0.00046849,120]
[354488048,1740528656519,-544.64,0.00046849,120]
[354488049,1740528656529,-857.03,0.00046849,120]
[354488050,1740528656539,-1000.86,0.00046849,120]
[354488051,1740528656549,-2285.94,0.00046849,120]
[354488052,1740528656559,-2311.6,0.00046849,120]
[354488053,1740528656572,-1011.92,0.00046849,120]
[354488054,1740528656582,-500.0,0.00046849,120]
[354488055,1740528656592,-653.45,0.00046849,120]
[354488056,1740528656602,-500.0,0.00046849,120]
[354488057,1740528656612,-924.11,0.00046849,120]
[354488058,1740528656622,-1977.24,0.00046849,120]
[354488059,1740528656631,-2222.82,0.00046849,120]
[354488060,1740528656643,-532.47,0.00046849,120]
[354488061,1740528656653,-924.13,0.00046849,120]
[354488062,1740528656663,-2682.56,0.00046849,120]
[354488063,1740528656673,-500.0,0.00046849,120]
[354488064,1740528656683,-500.0,0.00046849,120]
[354488065,1740528656693,-518.14,0.00046849,120]
[354488066,1740528656703,-628.14,0.00046849,120]
[354488067,1740528656713,-500.0,0.00046849,120]
[354488068,1740528656723,-500.0,0.00046849,120]
[354488069,1740528656732,-501.21,0.00046849,120]
[354488070,1740528656742,-1089.47,0.00046849,120]
[354488071,1740528656753,-500.0,0.00046849,120]
[354488072,1740528656763,-1661.92,0.00046849,120]
[354488073,1740528656773,-1074.14,0.00046849,120]
[354488074,1740528656783,-828.18,0.00046849,120]
[354488075,1740528656793,-889.69,0.00046849,120]
[354488076,1740528656803,-856.5,0.00046849,120]
[354488077,1740528656813,-500.0,0.00046849,120]
[354488078,1740528656823,-546.19,0.00046849,120]
[354488079,1740528656832,-500.0,0.00046849,120]
[354488080,1740528656842,-754.56,0.00046849,120]
[354488081,1740528656852,-2959.67,0.00046849,120]
[354488082,1740528656861,-577.12,0.00046849,120]
[354488083,1740528656871,-730.25,0.00046849,120]
[354488084,1740528656880,-500.0,0.00046849,120]
[354488085,1740528656889,-1707.99,0.00046849,120]
[354488086,1740528656899,-1895.59,0.00046849,120]
[354488087,1740528656909,-1930.8,0.00046849,120]
[354488088,1740528656919,-500.0,0.00046849,120]
[354488089,1740528656929,-500.0,0.00046849,120]
[354488090,1740528656939,-675.97,0.00046849,120]
[354488091,1740528656950,-665.31,0.00046849,120]
[354488092,1740528656960,-500.0,0.00046849,120]
[354488093,1740528656971,-1259.02,0.00046849,120]
[354488094,1740528656980,-500.0,0.00046849,120]
[354488095,1740528656990,-2608.13,0.00046849,120]
[354488096,1740528656999,-500.0,0.00046849,120]
[354488097,1740528657009,-2840.8,0.00046849,120]
[354488098,1740528657020,-509.88113417,0.00046849,120]
[354488099,1740528657029,-500.0,0.00046849,120]
[354488100,1740528657039,-500.0,0.00046849,120]
[354488101,1740528657048,-947.97,0.00046849,120]
[354488102,1740528657059,-500.0,0.00046849,120]
[354488103,1740528657070,-500.0,0.00046849,120]
[354488104,1740528657080,-671.58,0.00046849,120]
[354488105,1740528657091,-601.84,0.00046849,120]
[354488106,1740528657102,-500.0,0.00046849,120]
[354488107,1740528657112,-1524.25,0.00046849,120]
[354488108,1740528657122,-907.64,0.00046849,120]
[354488109,1740528657132,-1419.42,0.00046849,120]
[354488110,1740528657142,-749.49,0.00046849,120]
[354488111,1740528657151,-579.58,0.00046849,120]
[354488112,1740528657161,-586.08132539,0.00046849,60]
[354488113,1740528657171,-650.32,0.00046849,120]
[354488114,1740528657180,-500.0,0.00046849,120]
[354488115,1740528657190,-1154.95,0.00046849,120]
[354488116,1740528657200,-2766.95,0.00046849,120]
[354488117,1740528657209,-500.0,0.00046849,120]
[354488118,1740528657219,-780.64,0.00046849,120]
[354488119,1740528657229,-356.84484089,0.00046849,120]
[354488120,1740528657239,-1570.9,0.00046849,120]
[354488121,1740528657248,-500.0,0.00046849,120]
[354488122,1740528657259,-1795.96,0.00046849,120]
[354488123,1740528657269,-511.21,0.00046849,120]
[354488124,1740528657278,-500.0,0.00046849,120]
[354488125,1740528657288,-500.0,0.00046849,120]
[354488126,1740528657298,-298.2292063,0.00046849,120]
[354488127,1740528657307,-1395.15,0.00046849,120]
[354488128,1740528657317,-617.77,0.00046849,120]
[354488129,1740528657327,-500.0,0.00046849,120]
[354488130,1740528657339,-878.64,0.00046849,120]
[354488131,1740528657349,-500.0,0.00046849,120]
[354488132,1740528657359,-1495.05,0.00046849,120]
[354488133,1740528657370,-500.0,0.00046849,120]
[354488134,1740528657380,-1643.45,0.00046849,120]
[354488135,1740528657389,-693.72,0.00046849,120]
[354488136,1740528657400,-1102.38,0.00046849,120]
[354488137,1740528657409,-500.0,0.00046849,2]
[354488138,1740528657419,-219.35207031,0.00046849,120]
[354488139,1740528657438,-280.64792969,0.00046849,120]
[354488140,1740528657448,-484.92475831,0.00046849,120]
[354488141,1740528657460,-15.07524169,0.00046849,120]
[354488142,1740528657469,-1904.10475831,0.00046849,120]
[354488143,1740528657480,-127.59524169,0.00046849,120]
[354488144,1740528657489,-500.0,0.00046849,120]
[354488145,1740528657497,-289.88345774,0.00046849,120]
[354488146,1740528658204,-572.08599567,0.00046575,120]
[354488147,1740528658216,-760.18400433,0.00046575,120]
[354488148,1740528658226,-500.0,0.00046575,120]
[354488149,1740528658235,-500.0,0.00046575,120]
[354488150,1740528658244,-3449.95907766,0.00046575,120]
[354488151,1740528658256,-442.82396974,0.00046575,120]
[354488152,1740528658268,-1126.4069526,0.00046575,120]
[354488153,1740528658277,-500.0,0.00046575,120]
[354488154,1740528658286,-210.11654226,0.00046849,120]
[354488155,1740528658295,-500.0,0.00046849,120]
[354488156,1740528658304,-1678.44,0.00046849,120]
[354488157,1740528658314,-2188.58,0.00046849,120]
[354488158,1740528658323,-500.0,0.00046849,120]
[354488159,1740528658333,-500.0,0.00046849,120]
[354488160,1740528658343,-526.62,0.00046849,120]
[354488161,1740528658353,-500.0,0.00046849,120]
[354488162,1740528658362,-500.0,0.00046849,120]
[354488163,1740528658371,-500.0,0.00046849,120]
[354488164,1740528658380,-2418.37,0.00046849,120]
[354488165,1740528658390,-500.0,0.00046849,120]
[354488166,1740528658399,-1217.49705914,0.00046849,120]
[354488167,1740528658411,-1649.18294086,0.00046849,120]
[354488168,1740528658420,-500.0,0.00046849,120]
[354488169,1740528658429,-500.0,0.00046849,120]
[354488170,1740528658438,-500.0,0.00046849,120]
[354488171,1740528658447,-374.54706948,0.00046849,120]
[354488172,1740528658457,-624.53,0.00046849,120]
[354488173,1740528658467,-500.0,0.00046849,120]
[354488174,1740528658477,-785.3,0.00046849,120]
[354488175,1740528658487,-2363.22,0.00046849,120]
[354488176,1740528658498,-597.05,0.00046849,120]
[354488177,1740528658507,-500.0,0.00046849,120]
[354488178,1740528658517,-500.0,0.00046849,120]
[354488179,1740528658528,-500.0,0.00046849,120]
[354488180,1740528658538,-500.0,0.00046849,120]
[354488181,1740528658547,-947.99,0.00046849,120]
[354488182,1740528658557,-747.06,0.00046849,120]
[354488183,1740528658569,-1277.12,0.00046849,120]
[354488184,1740528658579,-500.0,0.00046849,120]
[354488185,1740528658589,-2057.59,0.00046849,120]
[354488186,1740528658600,-1393.84,0.00046849,120]
[354488187,1740528658610,-686.22,0.00046849,120]
[354488188,1740528658620,-1876.74,0.00046849,120]
[354488189,1740528658629,-1282.0,0.00046849,120]
[354488190,1740528658639,-500.0,0.00046849,120]
[354488191,1740528658648,-500.0,0.00046849,120]
[354488192,1740528658658,-2198.94,0.00046849,30]
[354488193,1740528658668,-500.0,0.00046849,120]
[354488194,1740528658678,-1321.79,0.00046849,120]
[354488195,1740528658687,-1100.02,0.00046849,120]
[354488196,1740528658697,-2391.68,0.00046849,120]
[354488197,1740528658706,-500.0,0.00046849,120]
[354488198,1740528658715,-802.92,0.00046849,120]
[354488199,1740528658724,-1046.0,0.00046849,120]
[354488200,1740528658733,-500.0,0.00046849,120]
[354488201,1740528658744,-957.52,0.00046849,120]
[354488202,1740528658753,-500.0,0.00046849,120]
[354488203,1740528658764,-500.0,0.00046849,120]
[354488204,1740528658774,-949.9,0.00046849,120]
[354488205,1740528658784,-3226.46,0.00046849,120]
[354488206,1740528658794,-697.76,0.00046849,120]
[354488207,1740528658804,-500.0,0.00046849,120]
[354488208,1740528658813,-500.0,0.00046849,120]
[354488209,1740528658823,-880.28,0.00046849,120]
[354488210,1740528658833,-500.0,0.00046849,120]
[354488211,1740528658842,-639.68,0.00046849,120]
[354488212,1740528658852,-2577.63,0.00046849,120]
[354488213,1740528658862,-500.0,0.00046849,120]
[354488214,1740528658872,-537.57,0.00046849,120]
[354488215,1740528658883,-1283.02,0.00046849,120]
[354488216,1740528658893,-1052.63,0.00046849,120]
[354488217,1740528658903,-610.99,0.00046849,120]
[354488218,1740528658912,-500.0,0.00046849,120]
[354488219,1740528658922,-558.84355027,0.00046849,120]
[354488220,1740528658932,-500.0,0.00046849,120]
[354488221,1740528658941,-676.58,0.00046849,30]
[354488222,1740528658950,-3287.5,0.00046849,120]
[354488223,1740528658959,-500.0,0.00046849,120]
[354488224,1740528658969,-822.06,0.00046849,120]
[354488225,1740528658978,-1062.11,0.00046849,120]
[354488226,1740528658987,-500.0,0.00046849,120]
[354488227,1740528658997,-1218.57,0.00046849,120]
[354488228,1740528659006,-500.0,0.00046849,120]
[354488229,1740528659016,-500.0,0.00046849,120]
[354488230,1740528659025,-1441.22,0.00046849,120]
[354488231,1740528659035,-500.0,0.00046849,120]
[354488232,1740528659045,-1537.58,0.00046849,120]
[354488233,1740528659055,-746.5,0.00046849,120]
[354488234,1740528659065,-500.0,0.00046849,120]
[354488235,1740528659075,-500.0,0.00046849,120]
[354488236,1740528659084,-500.0,0.00046849,120]
[354488237,1740528659094,-147.55377278,0.00046849,120]
[354488238,1740528659108,-352.44622722,0.00046849,120]
[354488239,1740528659117,-568.43,0.00046849,120]
[354488240,1740528659127,-968.06,0.00046849,120]
[354488241,1740528659135,-1000.0,0.00046849,45]
[354488242,1740528659144,-597.95,0.00046849,120]
[354488243,1740528659157,-500.0,0.00046849,120]
[354488244,1740528659165,-588.63,0.00046849,120]
[354488245,1740528659175,-1813.47,0.00046849,120]
[354488246,1740528659185,-500.0,0.00046849,120]
[354488247,1740528659195,-500.0,0.00046849,120]
[354488248,1740528659205,-500.0,0.00046849,120]
[354488249,1740528659214,-611.17,0.00046849,120]
[354488250,1740528659224,-649.92,0.00046849,120]
[354488251,1740528659234,-500.0,0.00046849,120]
[354488252,1740528659243,-1084.66,0.00046849,120]
[354488253,1740528659253,-500.0,0.00046849,120]
[354488254,1740528659262,-1480.44,0.00046849,120]
[354488255,1740528659272,-636.98,0.00046849,120]
[354488256,1740528659281,-971.36,0.00046849,120]
[354488257,1740528659291,-500.0,0.00046849,120]
[354488258,1740528659300,-500.0,0.00046849,120]
[354488259,1740528659310,-500.0,0.00046849,120]
[354488260,1740528659319,-832.73,0.00046849,120]
[354488261,1740528659328,-405.37692452,0.00046849,120]
[354488262,1740528659352,-504.42717946,0.00046575,120]
[354488263,1740528659362,-345.60307548,0.00046849,120]
[354488264,1740528659371,-776.57608591,0.00046849,120]
[354488265,1740528659383,-216.87391409,0.00046849,120]
[354488266,1740528659393,-1515.78,0.00046849,120]
[354488267,1740528659403,-500.0,0.00046849,120]
[354488268,1740528659413,-500.0,0.00046849,120]
[354488269,1740528659423,-2597.16,0.00046849,120]
[354488270,1740528659432,-771.57,0.00046849,120]
[354488271,1740528659446,-1212.89,0.00046849,120]
[354488272,1740528659455,-500.0,0.00046849,120]
[354488273,1740528659464,-1082.72,0.00046849,120]
[354488274,1740528659474,-500.0,0.00046849,120]
[354488275,1740528659483,-500.0,0.00046849,120]
[354488276,1740528659493,-595.23,0.00046849,120]
[354488277,1740528659502,-1228.23,0.00046849,120]
[354488278,1740528659512,-1022.67,0.00046849,120]
[354488279,1740528659522,-500.0,0.00046849,120]
[354488280,1740528659532,-590.41,0.00046849,120]
[354488281,1740528659541,-211.86608591,0.00046849,120]
[354488282,1740528659553,-924.83391409,0.00046849,120]
[354488283,1740528659567,-421.76971779,0.00046849,120]
[354488284,1740528659579,-78.23028221,0.00046849,120]
[354488285,1740528659589,-224.07971609,0.00046849,120]
[354488286,1740528659601,-427.98,0.00046849,120]
[354488287,1740528659613,-206.62028391,0.00046849,120]
[354488288,1740528659625,-1674.56,0.00046849,120]
[354488289,1740528659635,-500.0,0.00046849,120]
[354488290,1740528659646,-320.05073423,0.00046849,120]
[354488291,1740528659657,-1486.76926577,0.00046849,120]
[354488292,1740528659667,-1687.56,0.00046849,120]
[354488293,1740528659677,-1356.27,0.00046849,120]
[354488294,1740528659687,-633.68220799,0.00046849,120]
[354488295,1740528659698,-275.99670125,0.00046849,120]
[354488296,1740528659710,-405.8537147,0.00046849,120]
[354488297,1740528659721,-101.77737606,0.00046849,120]
[354488298,1740528659730,-1150.43,0.00046849,120]
[354488299,1740528659740,-1471.73624087,0.00046849,120]
[354488300,1740528659751,-536.73766417,0.00046849,120]
[354488301,1740528659763,-91.37609496,0.00046849,120]
[354488302,1740528659772,-331.53516852,0.00046849,120]
[354488303,1740528659783,-168.46483148,0.00046849,120]
[354488304,1740528659793,-378.97516852,0.00046849,120]
[354488305,1740528659805,-121.02483148,0.00046849,120]
[354488306,1740528659814,-500.0,0.00046849,120]
[354488307,1740528659823,-500.0,0.00046849,120]
[354488308,1740528659832,-829.78,0.00046849,120]
[354488309,1740528659842,-672.87,0.00046849,120]
[354488310,1740528659851,-1660.93,0.00046849,120]
[354488311,1740528659861,-500.0,0.00046849,120]
[354488312,1740528659870,-284.930487,0.00046849,120]
[354488313,1740528659880,-500.0,0.00046849,120]
[354488314,1740528659889,-528.7,0.00046849,120]
[354488315,1740528659899,-631.87,0.00046849,120]
[354488316,1740528659908,-500.0,0.00046849,120]
[354488317,1740528659917,-1483.41,0.00046849,120]
[354488318,1740528659927,-500.0,0.00046849,120]
[354488319,1740528659936,-500.0,0.00046849,120]
[354488320,1740528659945,-1741.65775633,0.00046849,120]
[354488321,1740528659957,-161.15224367,0.00046849,120]
[354488322,1740528659967,-121.74775633,0.00046849,120]
[354488323,1740528659978,-450.01224367,0.00046849,120]
[354488324,1740528659987,-639.8689317,0.00046849,120]
[354488325,1740528660010,-630.1810683,0.00046849,120]
[354488326,1740528660020,-788.39,0.00046849,120]
[354488327,1740528660030,-500.0,0.00046849,120]
[354488328,1740528660039,-481.02481912,0.00046849,120]
[354488329,1740528660049,-500.0,0.00046849,120]
[354488330,1740528660059,-3042.83387946,0.00046849,120]
[354488331,1740528660071,-197.83612054,0.00046849,120]
[354488332,1740528660080,-855.26587135,0.00046849,120]
[354488333,1740528660092,-1842.86412865,0.00046849,120]
[354488334,1740528660101,-1525.73,0.00046849,120]
[354488335,1740528660110,-500.0,0.00046849,120]
[354488336,1740528660119,-551.73,0.00046849,120]
[354488337,1740528660128,-607.66,0.00046849,120]
[354488338,1740528660138,-500.0,0.00046849,120]
[354488339,1740528660148,-500.0,0.00046849,120]
[354488340,1740528660158,-682.82,0.00046849,120]
[354488341,1740528660168,-2530.6,0.00046849,120]
[354488342,1740528660178,-1269.24129149,0.00046849,120]
[354488343,1740528660190,-106.18870851,0.00046849,120]
[354488344,1740528660200,-500.0,0.00046849,120]
[354488345,1740528660210,-500.0,0.00046849,120]
[354488346,1740528660219,-476.94016261,0.00046849,120]
[354488347,1740528660231,-23.05983739,0.00046849,120]
[354488348,1740528660240,-480.3068849,0.00046849,120]
[354488349,1740528660260,-38.7631151,0.00046849,120]
[354488350,1740528660272,-200.0,0.00046849,7]
[354488351,1740528660282,-1811.07,0.00046849,120]
[354488352,1740528660291,-2736.65,0.00046849,120]
[354488353,1740528660301,-1112.54,0.00046849,120]
[354488354,1740528660310,-225.110582,0.00046849,120]
[354488355,1740528660319,-500.0,0.00046849,120]
[354488356,1740528660328,-500.0,0.00046849,120]
[354488357,1740528660337,-500.0,0.00046849,120]
[354488358,1740528660346,-561.36,0.00046849,120]
[354488359,1740528660358,-500.0,0.00046849,120]
[354488360,1740528660367,-500.0,0.00046849,120]
[354488361,1740528660376,-689.62,0.00046849,120]
[354488362,1740528660386,-500.0,0.00046849,120]
[354488363,1740528660395,-1334.32,0.00046849,120]
[354488364,1740528660405,-1826.76,0.00046849,120]
[354488365,1740528660414,-696.61,0.00046849,120]
[354488366,1740528660423,-2155.1,0.00046849,120]
[354488367,1740528660432,-2411.34,0.00046849,120]
[354488368,1740528660442,-500.0,0.00046849,120]
[354488369,1740528660452,-294.28403154,0.00046849,120]
[354488370,1740528660461,-500.0,0.00046849,120]
[354488371,1740528660470,-500.0,0.00046849,120]
[354488372,1740528660480,-500.0,0.00046849,120]
[354488373,1740528660490,-831.17,0.00046849,120]
[354488374,1740528660499,-500.0,0.00046849,120]
[354488375,1740528660509,-1971.06,0.00046849,120]
[354488376,1740528660520,-1288.96,0.00046849,120]
[354488377,1740528660529,-987.33,0.00046849,120]
[354488378,1740528660539,-500.0,0.00046849,120]
[354488379,1740528660548,-500.0,0.00046849,120]